[Event "Titled Tuesday Blitz October 26 2021"]
[White "Zhigalko, Sergei"]
[Black "Vlachos, Anatole"]
[WhiteFideId "13502956"]
[BlackFideId "26093189"]
[WhiteElo "2662"]
[BlackElo "2350"]
[Result "0-1"]
[Round "04"]
[TimeControl "180+1"]
[Date "2021.10.26"]
[WhiteClock "0:00:02"]
[BlackClock "0:00:22"]

1. e4 {[%clk 0:03:00]}  e5 {[%clk 0:02:59]} 2. Nf3 {[%clk 0:03:01]}  Nc6 {[%clk 0:03:00]} 3. Bc4 {[%clk 0:03:01]}  Bc5 {[%clk 0:02:56]} 4. b4 {[%clk 0:03:02]}  Bxb4 {[%clk 0:02:54]} 5. c3 {[%clk 0:03:02]}  Be7 {[%clk 0:02:54]} 6. d4 {[%clk 0:03:02]}  Na5 {[%clk 0:02:55]} 7. Bd3 {[%clk 0:03:03]}  d6 {[%clk 0:02:54]} 8. dxe5 {[%clk 0:03:03]}  dxe5 {[%clk 0:02:52]} 9. Nxe5 {[%clk 0:03:04]}  c5 {[%clk 0:02:40]} 10. Qa4+ {[%clk 0:02:52]}  Kf8 {[%clk 0:02:40]} 11. Qc2 {[%clk 0:02:35]}  Qc7 {[%clk 0:02:40]} 12. Nc4 {[%clk 0:02:29]}  Be6 {[%clk 0:02:38]} 13. Nxa5 {[%clk 0:02:27]}  Qxa5 {[%clk 0:02:39]} 14. Nd2 {[%clk 0:02:21]}  Nf6 {[%clk 0:02:35]} 15. O-O {[%clk 0:02:20]}  Rd8 {[%clk 0:02:23]} 16. h3 {[%clk 0:02:12]}  h5 {[%clk 0:02:20]} 17. Rd1 {[%clk 0:01:39]}  g6 {[%clk 0:02:09]} 18. Bb2 {[%clk 0:01:29]}  Kg7 {[%clk 0:02:08]} 19. c4 {[%clk 0:01:29]}  Kh7 {[%clk 0:02:09]} 20. Nf3 {[%clk 0:01:28]}  Nd7 {[%clk 0:02:05]} 21. Bxh8 {[%clk 0:01:22]}  Rxh8 {[%clk 0:02:03]} 22. e5 {[%clk 0:01:22]}  Qc7 {[%clk 0:02:00]} 23. Qe2 {[%clk 0:00:51]}  Re8 {[%clk 0:01:58]} 24. Re1 {[%clk 0:00:40]}  Kh8 {[%clk 0:01:53]} 25. Rad1 {[%clk 0:00:38]}  Bf8 {[%clk 0:01:51]} 26. Ng5 {[%clk 0:00:38]}  Bg7 {[%clk 0:01:51]} 27. f4 {[%clk 0:00:38]}  b5 {[%clk 0:01:34]} 28. Nxe6 {[%clk 0:00:35]}  Rxe6 {[%clk 0:01:33]} 29. cxb5 {[%clk 0:00:35]}  Nb6 {[%clk 0:01:34]} 30. Bc4 {[%clk 0:00:35]}  Re8 {[%clk 0:01:32]} 31. Qd3 {[%clk 0:00:32]}  f5 {[%clk 0:01:26]} 32. Kh1 {[%clk 0:00:31]}  Kh7 {[%clk 0:01:24]} 33. Re2 {[%clk 0:00:23]}  Re7 {[%clk 0:01:24]} 34. Red2 {[%clk 0:00:21]}  Bh6 {[%clk 0:01:24]} 35. Qf1 {[%clk 0:00:13]}  h4 {[%clk 0:01:22]} 36. Rd6 {[%clk 0:00:12]}  Qb7 {[%clk 0:01:19]} 37. Rc6 {[%clk 0:00:11]}  a6 {[%clk 0:01:16]} 38. Rdd6 {[%clk 0:00:11]}  Nxc4 {[%clk 0:01:15]} 39. Qxc4 {[%clk 0:00:11]}  axb5 {[%clk 0:01:12]} 40. Qxc5 {[%clk 0:00:12]}  Rg7 {[%clk 0:01:09]} 41. Qf2 {[%clk 0:00:07]}  Qa8 {[%clk 0:01:05]} 42. Qxh4 {[%clk 0:00:05]}  Qxa2 {[%clk 0:01:05]} 43. Kh2 {[%clk 0:00:04]}  Qa4 {[%clk 0:01:03]} 44. Kh1 {[%clk 0:00:03]}  Qa1+ {[%clk 0:01:00]} 45. Kh2 {[%clk 0:00:03]}  Qa4 {[%clk 0:01:01]} 46. g3 {[%clk 0:00:01]}  Qa2+ {[%clk 0:01:00]} 47. Kg1 {[%clk 0:00:02]}  Qa1+ {[%clk 0:00:52]} 48. Kf2 {[%clk 0:00:02]}  Qb2+ {[%clk 0:00:53]} 49. Kf3 {[%clk 0:00:02]}  Ra7 {[%clk 0:00:52]} 50. Rd3 {[%clk 0:00:01]}  Qb1 {[%clk 0:00:48]} 51. Rd2 {[%clk 0:00:01]}  Qf1+ {[%clk 0:00:46]} 52. Ke3 {[%clk 0:00:01]}  Qe1+ {[%clk 0:00:36]} 53. Kd3 {[%clk 0:00:01]}  Ra3+ {[%clk 0:00:32]} 54. Rc3 {[%clk 0:00:01]}  Qf1+ {[%clk 0:00:26]} 55. Kc2 {[%clk 0:00:01]}  Ra2+ {[%clk 0:00:22]} 56. Kb3 {[%clk 0:00:02]}  Qb1+ {[%clk 0:00:22]} 0-1


[Site "https://www.chess.com"]

[Event "Titled Tuesday Blitz October 26 2021"]
[White "Zierk, Steven"]
[Black "Schmakel, Sam"]
[WhiteFideId "2034255"]
[BlackFideId "2039311"]
[WhiteElo "2494"]
[BlackElo "2356"]
[Result "1-0"]
[Round "04"]
[TimeControl "180+1"]
[Date "2021.10.26"]
[WhiteClock "0:00:10"]
[BlackClock "0:00:03"]

1. e4 {[%clk 0:02:45]}  c5 {[%clk 0:02:59]} 2. Nf3 {[%clk 0:02:45]}  d6 {[%clk 0:02:59]} 3. d4 {[%clk 0:02:45]}  cxd4 {[%clk 0:02:59]} 4. Nxd4 {[%clk 0:02:46]}  Nf6 {[%clk 0:03:00]} 5. f3 {[%clk 0:02:47]}  g6 {[%clk 0:02:59]} 6. c4 {[%clk 0:02:46]}  Bg7 {[%clk 0:02:59]} 7. Nc3 {[%clk 0:02:47]}  Nc6 {[%clk 0:02:59]} 8. Be3 {[%clk 0:02:47]}  O-O {[%clk 0:02:58]} 9. Qd2 {[%clk 0:02:46]}  Bd7 {[%clk 0:02:46]} 10. Nc2 {[%clk 0:02:44]}  Rc8 {[%clk 0:02:42]} 11. Be2 {[%clk 0:02:44]}  a6 {[%clk 0:02:33]} 12. O-O {[%clk 0:02:42]}  Qa5 {[%clk 0:02:20]} 13. Rfd1 {[%clk 0:02:26]}  Be6 {[%clk 0:01:40]} 14. Rac1 {[%clk 0:02:19]}  b5 {[%clk 0:01:34]} 15. b4 {[%clk 0:01:46]}  Nxb4 {[%clk 0:01:06]} 16. Nd5 {[%clk 0:01:31]}  Bxd5 {[%clk 0:01:04]} 17. Nxb4 {[%clk 0:00:18]}  Bxc4 {[%clk 0:00:56]} 18. Nc6 {[%clk 0:00:17]}  Qc7 {[%clk 0:00:41]} 19. Bxc4 {[%clk 0:00:16]}  bxc4 {[%clk 0:00:31]} 20. Rxc4 {[%clk 0:00:17]}  Qd7 {[%clk 0:00:24]} 21. Rdc1 {[%clk 0:00:16]}  Ra8 {[%clk 0:00:23]} 22. e5 {[%clk 0:00:15]}  dxe5 {[%clk 0:00:11]} 23. Qxd7 {[%clk 0:00:13]}  Nxd7 {[%clk 0:00:12]} 24. Nxe7+ {[%clk 0:00:14]}  Kh8 {[%clk 0:00:12]} 25. Rc7 {[%clk 0:00:14]}  Nf6 {[%clk 0:00:12]} 26. Bc5 {[%clk 0:00:14]}  Rfe8 {[%clk 0:00:09]} 27. Nc6 {[%clk 0:00:13]}  Kg8 {[%clk 0:00:06]} 28. Ne7+ {[%clk 0:00:13]}  Kh8 {[%clk 0:00:06]} 29. Nc6 {[%clk 0:00:14]}  Rec8 {[%clk 0:00:03]} 30. Rxc8+ {[%clk 0:00:13]}  Rxc8 {[%clk 0:00:04]} 31. Nxe5 {[%clk 0:00:14]}  Kg8 {[%clk 0:00:04]} 32. Nd3 {[%clk 0:00:12]}  Bh6 {[%clk 0:00:02]} 33. Re1 {[%clk 0:00:12]}  Nd5 {[%clk 0:00:02]} 34. Re5 {[%clk 0:00:11]}  Nc7 {[%clk 0:00:01]} 35. Kf1 {[%clk 0:00:10]}  Ne6 {[%clk 0:00:02]} 36. Be3 {[%clk 0:00:10]}  Rc2 {[%clk 0:00:02]} 37. Bxh6 {[%clk 0:00:09]}  Rxa2 {[%clk 0:00:02]} 38. Rd5 {[%clk 0:00:09]}  f6 {[%clk 0:00:02]} 39. Nc5 {[%clk 0:00:09]}  Nxc5 {[%clk 0:00:02]} 40. Rxc5 {[%clk 0:00:10]}  a5 {[%clk 0:00:03]} 41. Rc7 {[%clk 0:00:10]}  a4 {[%clk 0:00:03]} 42. Rg7+ {[%clk 0:00:10]}  Kh8 {[%clk 0:00:03]} 43. Rf7 {[%clk 0:00:10]} 1-0


[Site "https://www.chess.com"]

[Event "Titled Tuesday Blitz October 26 2021"]
[White "Abarca Gonzalez, Nicolas"]
[Black "Mamedyarov, Shakhriyar"]
[WhiteFideId "3409422"]
[BlackFideId "13401319"]
[WhiteElo "2504"]
[BlackElo "2754"]
[Result "0-1"]
[Round "05"]
[TimeControl "180+1"]
[Date "2021.10.26"]
[WhiteClock "0:00:15"]
[BlackClock "0:00:05"]

1. e4 {[%clk 0:02:57]}  c5 {[%clk 0:02:59]} 2. Nf3 {[%clk 0:02:56]}  e6 {[%clk 0:03:00]} 3. b3 {[%clk 0:02:56]}  Nf6 {[%clk 0:02:57]} 4. e5 {[%clk 0:02:54]}  Nd5 {[%clk 0:02:56]} 5. Bb2 {[%clk 0:02:54]}  Nc6 {[%clk 0:02:54]} 6. g3 {[%clk 0:02:54]}  h6 {[%clk 0:02:41]} 7. Bg2 {[%clk 0:02:48]}  g5 {[%clk 0:02:40]} 8. Na3 {[%clk 0:02:48]}  Bg7 {[%clk 0:02:33]} 9. Nc4 {[%clk 0:02:46]}  O-O {[%clk 0:02:33]} 10. a4 {[%clk 0:02:46]}  f6 {[%clk 0:02:20]} 11. h4 {[%clk 0:02:23]}  g4 {[%clk 0:02:17]} 12. exf6 {[%clk 0:02:23]}  Bxf6 {[%clk 0:01:59]} 13. Nfe5 {[%clk 0:02:21]}  h5 {[%clk 0:01:58]} 14. Qe2 {[%clk 0:02:04]}  Nd4 {[%clk 0:01:32]} 15. Bxd4 {[%clk 0:02:00]}  cxd4 {[%clk 0:01:33]} 16. Qe4 {[%clk 0:02:01]}  d6 {[%clk 0:01:25]} 17. Qg6+ {[%clk 0:01:51]}  Bg7 {[%clk 0:01:24]} 18. Be4 {[%clk 0:01:52]}  Nf6 {[%clk 0:01:10]} 19. Nxg4 {[%clk 0:01:30]}  hxg4 {[%clk 0:00:57]} 20. Bd3 {[%clk 0:01:30]}  d5 {[%clk 0:00:40]} 21. Ne5 {[%clk 0:01:28]}  Qe8 {[%clk 0:00:40]} 22. Qg5 {[%clk 0:01:20]}  Qh5 {[%clk 0:00:40]} 23. Qxh5 {[%clk 0:01:19]}  Nxh5 {[%clk 0:00:40]} 24. Nxg4 {[%clk 0:01:20]}  e5 {[%clk 0:00:40]} 25. Nh2 {[%clk 0:01:15]}  e4 {[%clk 0:00:38]} 26. Be2 {[%clk 0:01:15]}  Nxg3 {[%clk 0:00:31]} 27. fxg3 {[%clk 0:01:12]}  d3 {[%clk 0:00:31]} 28. c3 {[%clk 0:01:06]}  dxe2 {[%clk 0:00:31]} 29. Kxe2 {[%clk 0:01:07]}  d4 {[%clk 0:00:29]} 30. cxd4 {[%clk 0:01:04]}  Bxd4 {[%clk 0:00:30]} 31. Raf1 {[%clk 0:01:04]}  Bh3 {[%clk 0:00:30]} 32. Rf4 {[%clk 0:01:00]}  Rxf4 {[%clk 0:00:29]} 33. gxf4 {[%clk 0:01:01]}  Kf7 {[%clk 0:00:26]} 34. Nf1 {[%clk 0:01:00]}  Bg2 {[%clk 0:00:21]} 35. Rh2 {[%clk 0:00:57]}  Bf3+ {[%clk 0:00:21]} 36. Ke1 {[%clk 0:00:57]}  Rc8 {[%clk 0:00:21]} 37. Ne3 {[%clk 0:00:57]}  Kf6 {[%clk 0:00:16]} 38. h5 {[%clk 0:00:53]}  Bxe3 {[%clk 0:00:15]} 39. dxe3 {[%clk 0:00:54]}  Rc1+ {[%clk 0:00:13]} 40. Kd2 {[%clk 0:00:54]}  Rh1 {[%clk 0:00:10]} 41. Rxh1 {[%clk 0:00:54]}  Bxh1 {[%clk 0:00:11]} 42. Kc3 {[%clk 0:00:54]}  Bf3 {[%clk 0:00:10]} 43. h6 {[%clk 0:00:54]}  Kg6 {[%clk 0:00:10]} 44. Kd4 {[%clk 0:00:50]}  Kxh6 {[%clk 0:00:10]} 45. Ke5 {[%clk 0:00:51]}  Kg7 {[%clk 0:00:09]} 46. b4 {[%clk 0:00:50]}  Kf7 {[%clk 0:00:08]} 47. Kd6 {[%clk 0:00:50]}  Bd1 {[%clk 0:00:04]} 48. a5 {[%clk 0:00:50]}  Be2 {[%clk 0:00:02]} 49. Kc5 {[%clk 0:00:44]}  Ke6 {[%clk 0:00:02]} 50. b5 {[%clk 0:00:45]}  a6 {[%clk 0:00:02]} 51. bxa6 {[%clk 0:00:41]}  Bxa6 {[%clk 0:00:03]} 52. Kd4 {[%clk 0:00:42]}  Kf5 {[%clk 0:00:03]} 53. Kd5 {[%clk 0:00:42]}  Be2 {[%clk 0:00:03]} 54. Kd6 {[%clk 0:00:40]}  Bd3 {[%clk 0:00:03]} 55. Kc7 {[%clk 0:00:40]}  Ba6 {[%clk 0:00:04]} 56. Kd6 {[%clk 0:00:41]}  Bb5 {[%clk 0:00:04]} 57. Kc7 {[%clk 0:00:40]}  Ba6 {[%clk 0:00:03]} 58. Kd6 {[%clk 0:00:41]}  Kg4 {[%clk 0:00:04]} 59. Kc7 {[%clk 0:00:32]}  Kf3 {[%clk 0:00:01]} 60. f5 {[%clk 0:00:32]}  Kxe3 {[%clk 0:00:02]} 61. f6 {[%clk 0:00:32]}  Bc4 {[%clk 0:00:03]} 62. Kxb7 {[%clk 0:00:33]}  Kd4 {[%clk 0:00:03]} 63. a6 {[%clk 0:00:33]}  Ke5 {[%clk 0:00:03]} 64. Kc6 {[%clk 0:00:14]}  Kxf6 {[%clk 0:00:03]} 65. Kc5 {[%clk 0:00:15]}  Bxa6 {[%clk 0:00:03]} 66. Kd4 {[%clk 0:00:15]}  Bd3 {[%clk 0:00:04]} 67. Ke3 {[%clk 0:00:15]}  Kf5 {[%clk 0:00:05]} 0-1


[Site "https://www.chess.com"]

[Event "Titled Tuesday Blitz October 26 2021"]
[White "Alexakis, Dimitris"]
[Black "Andreikin, Dmitry"]
[WhiteFideId "4277023"]
[BlackFideId "4158814"]
[WhiteElo "2409"]
[BlackElo "2736"]
[Result "0-1"]
[Round "05"]
[TimeControl "180+1"]
[Date "2021.10.26"]
[WhiteClock "0:00:01"]
[BlackClock "0:01:08"]

1. e4 {[%clk 0:02:57]}  c5 {[%clk 0:02:56]} 2. Nf3 {[%clk 0:02:53]}  Nc6 {[%clk 0:02:56]} 3. d4 {[%clk 0:02:51]}  cxd4 {[%clk 0:02:56]} 4. Nxd4 {[%clk 0:02:52]}  Qb6 {[%clk 0:02:56]} 5. Nb3 {[%clk 0:02:52]}  Nf6 {[%clk 0:02:56]} 6. Nc3 {[%clk 0:02:52]}  e6 {[%clk 0:02:57]} 7. Be3 {[%clk 0:02:53]}  Qc7 {[%clk 0:02:56]} 8. Bd3 {[%clk 0:02:53]}  a6 {[%clk 0:02:55]} 9. f4 {[%clk 0:02:53]}  d6 {[%clk 0:02:53]} 10. O-O {[%clk 0:02:52]}  b5 {[%clk 0:02:51]} 11. a3 {[%clk 0:02:52]}  Bb7 {[%clk 0:02:50]} 12. Qf3 {[%clk 0:02:51]}  h5 {[%clk 0:02:48]} 13. h3 {[%clk 0:02:47]}  Be7 {[%clk 0:02:35]} 14. Rae1 {[%clk 0:02:44]}  Rc8 {[%clk 0:02:31]} 15. Nd4 {[%clk 0:02:40]}  Na5 {[%clk 0:02:25]} 16. Qg3 {[%clk 0:02:28]}  Nc4 {[%clk 0:02:24]} 17. Bxc4 {[%clk 0:02:10]}  Qxc4 {[%clk 0:02:25]} 18. e5 {[%clk 0:02:10]}  h4 {[%clk 0:02:11]} 19. Qg5 {[%clk 0:01:42]}  Nh5 {[%clk 0:01:50]} 20. Qg4 {[%clk 0:01:31]}  dxe5 {[%clk 0:01:43]} 21. fxe5 {[%clk 0:01:29]}  g6 {[%clk 0:01:44]} 22. Rxf7 {[%clk 0:00:43]}  Kxf7 {[%clk 0:01:29]} 23. Rf1+ {[%clk 0:00:43]}  Ke8 {[%clk 0:01:29]} 24. Qxg6+ {[%clk 0:00:41]}  Kd7 {[%clk 0:01:29]} 25. Rd1 {[%clk 0:00:19]}  Rcg8 {[%clk 0:01:25]} 26. Nf3+ {[%clk 0:00:03]}  Kc8 {[%clk 0:01:19]} 27. Qf7 {[%clk 0:00:04]}  Rg7 {[%clk 0:01:14]} 28. b3 {[%clk 0:00:02]}  Rxf7 {[%clk 0:01:08]} 29. bxc4 {[%clk 0:00:02]}  Bxf3 {[%clk 0:01:08]} 30. gxf3 {[%clk 0:00:01]}  Rxf3 {[%clk 0:01:08]} 0-1


[Site "https://www.chess.com"]

[Event "Titled Tuesday Blitz October 26 2021"]
[White "Aloma Vidal, Robert"]
[Black "Ozen, Bahadir"]
[WhiteFideId "2260409"]
[BlackFideId "6337058"]
[WhiteElo "2435"]
[BlackElo "2503"]
[Result "0-1"]
[Round "05"]
[TimeControl "180+1"]
[Date "2021.10.26"]
[WhiteClock "0:00:14"]
[BlackClock "0:01:24"]

1. e4 {[%clk 0:03:00]}  c6 {[%clk 0:03:00]} 2. d4 {[%clk 0:03:00]}  d5 {[%clk 0:03:00]} 3. e5 {[%clk 0:03:00]}  Bf5 {[%clk 0:03:01]} 4. Nf3 {[%clk 0:03:00]}  e6 {[%clk 0:03:01]} 5. Be2 {[%clk 0:03:00]}  c5 {[%clk 0:02:59]} 6. O-O {[%clk 0:02:51]}  Nc6 {[%clk 0:02:54]} 7. Be3 {[%clk 0:02:50]}  cxd4 {[%clk 0:02:51]} 8. Nxd4 {[%clk 0:02:49]}  Nge7 {[%clk 0:02:51]} 9. c4 {[%clk 0:02:37]}  dxc4 {[%clk 0:02:24]} 10. Bxc4 {[%clk 0:02:15]}  Nxd4 {[%clk 0:02:17]} 11. Bxd4 {[%clk 0:02:09]}  Nc6 {[%clk 0:02:17]} 12. Bb5 {[%clk 0:02:01]}  Be7 {[%clk 0:02:16]} 13. Nc3 {[%clk 0:01:57]}  O-O {[%clk 0:02:15]} 14. Bxc6 {[%clk 0:01:55]}  bxc6 {[%clk 0:02:16]} 15. Be3 {[%clk 0:01:52]}  Qc7 {[%clk 0:02:12]} 16. f4 {[%clk 0:01:48]}  Rfd8 {[%clk 0:02:11]} 17. Qe1 {[%clk 0:01:39]}  Rab8 {[%clk 0:02:09]} 18. b3 {[%clk 0:01:36]}  c5 {[%clk 0:02:01]} 19. Rc1 {[%clk 0:01:35]}  c4 {[%clk 0:01:59]} 20. Qf2 {[%clk 0:01:19]}  Ba3 {[%clk 0:01:52]} 21. Rcd1 {[%clk 0:00:53]}  Bd3 {[%clk 0:01:52]} 22. Bxa7 {[%clk 0:00:42]}  Rb7 {[%clk 0:01:43]} 23. Be3 {[%clk 0:00:35]}  cxb3 {[%clk 0:01:34]} 24. Rxd3 {[%clk 0:00:15]}  Rxd3 {[%clk 0:01:33]} 25. Nb1 {[%clk 0:00:15]}  Bf8 {[%clk 0:01:23]} 26. axb3 {[%clk 0:00:14]}  Rxe3 {[%clk 0:01:24]} 0-1


[Site "https://www.chess.com"]

[Event "Titled Tuesday Blitz October 26 2021"]
[White "Bortnyk, Olexandr"]
[Black "Matinian, Nikita"]
[WhiteFideId "14120828"]
[BlackFideId "24129100"]
[WhiteElo "2723"]
[BlackElo "2464"]
[Result "1-0"]
[Round "05"]
[TimeControl "180+1"]
[Date "2021.10.26"]
[WhiteClock "0:00:16"]
[BlackClock "0:00:06"]

1. e4 {[%clk 0:03:00]}  d6 {[%clk 0:01:01]} 2. d4 {[%clk 0:03:00]}  g6 {[%clk 0:01:00]} 3. Nf3 {[%clk 0:02:55]}  Bg7 {[%clk 0:01:00]} 4. Bc4 {[%clk 0:02:56]}  Nf6 {[%clk 0:01:00]} 5. Qe2 {[%clk 0:02:55]}  c6 {[%clk 0:00:58]} 6. Bb3 {[%clk 0:02:48]}  O-O {[%clk 0:00:57]} 7. O-O {[%clk 0:02:47]}  Bg4 {[%clk 0:00:56]} 8. h3 {[%clk 0:02:42]}  Bxf3 {[%clk 0:00:56]} 9. Qxf3 {[%clk 0:02:43]}  Nbd7 {[%clk 0:00:57]} 10. c3 {[%clk 0:02:41]}  a5 {[%clk 0:00:57]} 11. Rd1 {[%clk 0:02:38]}  a4 {[%clk 0:00:57]} 12. Bc2 {[%clk 0:02:39]}  Qb6 {[%clk 0:00:55]} 13. Nd2 {[%clk 0:02:38]}  Qa6 {[%clk 0:00:52]} 14. Nf1 {[%clk 0:02:37]}  b5 {[%clk 0:00:52]} 15. a3 {[%clk 0:02:32]}  e5 {[%clk 0:00:47]} 16. Ng3 {[%clk 0:02:26]}  Rfe8 {[%clk 0:00:45]} 17. h4 {[%clk 0:02:13]}  exd4 {[%clk 0:00:44]} 18. cxd4 {[%clk 0:02:13]}  c5 {[%clk 0:00:45]} 19. h5 {[%clk 0:02:06]}  cxd4 {[%clk 0:00:45]} 20. h6 {[%clk 0:02:00]}  Ne5 {[%clk 0:00:44]} 21. Qe2 {[%clk 0:01:59]}  Bh8 {[%clk 0:00:40]} 22. Rxd4 {[%clk 0:01:55]}  d5 {[%clk 0:00:39]} 23. Bg5 {[%clk 0:01:48]}  Nc4 {[%clk 0:00:38]} 24. Qf3 {[%clk 0:01:06]}  Nxe4 {[%clk 0:00:35]} 25. Rxd5 {[%clk 0:00:53]}  Nxg5 {[%clk 0:00:31]} 26. Rxg5 {[%clk 0:00:54]}  Bxb2 {[%clk 0:00:31]} 27. Rd1 {[%clk 0:00:48]}  Bxa3 {[%clk 0:00:32]} 28. Bxg6 {[%clk 0:00:39]}  fxg6 {[%clk 0:00:26]} 29. Rd7 {[%clk 0:00:35]}  Qe6 {[%clk 0:00:20]} 30. Nh5 {[%clk 0:00:21]}  Rf8 {[%clk 0:00:11]} 31. Rg7+ {[%clk 0:00:19]}  Kh8 {[%clk 0:00:11]} 32. Qb7 {[%clk 0:00:19]}  Qe1+ {[%clk 0:00:08]} 33. Kh2 {[%clk 0:00:20]}  Bd6+ {[%clk 0:00:09]} 34. Ng3 {[%clk 0:00:15]}  Bxg3+ {[%clk 0:00:06]} 35. fxg3 {[%clk 0:00:16]} 1-0


[Site "https://www.chess.com"]

[Event "Titled Tuesday Blitz October 26 2021"]
[White "Demidov, Mikhail"]
[Black "Baskin, Robert"]
[WhiteFideId "4197143"]
[BlackFideId "24662402"]
[WhiteElo "2527"]
[BlackElo "2521"]
[Result "1-0"]
[Round "05"]
[TimeControl "180+1"]
[Date "2021.10.26"]
[WhiteClock "0:01:57"]
[BlackClock "0:00:18"]

1. Nf3 {[%clk 0:03:00]}  c5 {[%clk 0:02:57]} 2. g3 {[%clk 0:03:00]}  d5 {[%clk 0:02:51]} 3. Bg2 {[%clk 0:03:01]}  Nf6 {[%clk 0:02:51]} 4. O-O {[%clk 0:03:01]}  e6 {[%clk 0:02:31]} 5. d4 {[%clk 0:02:59]}  cxd4 {[%clk 0:02:26]} 6. Nxd4 {[%clk 0:02:58]}  e5 {[%clk 0:02:24]} 7. Nb3 {[%clk 0:02:55]}  Be6 {[%clk 0:02:21]} 8. c4 {[%clk 0:02:53]}  Nc6 {[%clk 0:01:40]} 9. cxd5 {[%clk 0:02:52]}  Nxd5 {[%clk 0:01:37]} 10. N1d2 {[%clk 0:02:43]}  h6 {[%clk 0:01:36]} 11. Ne4 {[%clk 0:02:43]}  Qb6 {[%clk 0:01:31]} 12. Nc3 {[%clk 0:02:34]}  Nxc3 {[%clk 0:01:27]} 13. bxc3 {[%clk 0:02:35]}  Be7 {[%clk 0:01:25]} 14. Be3 {[%clk 0:02:35]}  Qb5 {[%clk 0:01:07]} 15. Rb1 {[%clk 0:02:31]}  Qc4 {[%clk 0:01:07]} 16. Nd2 {[%clk 0:02:29]}  Qa6 {[%clk 0:01:05]} 17. Ne4 {[%clk 0:02:25]}  O-O {[%clk 0:01:00]} 18. Bc5 {[%clk 0:02:21]}  Rfd8 {[%clk 0:00:58]} 19. Qc2 {[%clk 0:02:20]}  Qxa2 {[%clk 0:00:44]} 20. Qxa2 {[%clk 0:02:19]}  Bxa2 {[%clk 0:00:45]} 21. Rxb7 {[%clk 0:02:19]}  Bxc5 {[%clk 0:00:42]} 22. Nxc5 {[%clk 0:02:20]}  Bd5 {[%clk 0:00:41]} 23. Ra1 {[%clk 0:02:11]}  Bxg2 {[%clk 0:00:35]} 24. Kxg2 {[%clk 0:02:12]}  Rab8 {[%clk 0:00:35]} 25. Ra6 {[%clk 0:02:09]}  Rxb7 {[%clk 0:00:22]} 26. Nxb7 {[%clk 0:02:10]}  Rc8 {[%clk 0:00:22]} 27. Nd6 {[%clk 0:02:08]}  Rc7 {[%clk 0:00:22]} 28. Nb5 {[%clk 0:02:07]}  Rc8 {[%clk 0:00:23]} 29. Kf3 {[%clk 0:02:03]}  g6 {[%clk 0:00:17]} 30. Ke4 {[%clk 0:01:59]}  Kg7 {[%clk 0:00:18]} 31. Nd6 {[%clk 0:01:57]}  Rc7 {[%clk 0:00:18]} 32. Ne8+ {[%clk 0:01:57]} 1-0


[Site "https://www.chess.com"]

[Event "Titled Tuesday Blitz October 26 2021"]
[White "Florescu, Codrut-Constantin"]
[Black "Savchenko, Boris"]
[WhiteFideId "1202200"]
[BlackFideId "4147332"]
[WhiteElo "2243"]
[BlackElo "2526"]
[Result "0-1"]
[Round "05"]
[TimeControl "180+1"]
[Date "2021.10.26"]
[WhiteClock "0:00:33"]
[BlackClock "0:01:45"]

1. d4 {[%clk 0:03:00]}  Nf6 {[%clk 0:02:59]} 2. c4 {[%clk 0:03:00]}  g6 {[%clk 0:03:00]} 3. Nc3 {[%clk 0:02:59]}  d5 {[%clk 0:03:00]} 4. cxd5 {[%clk 0:02:59]}  Nxd5 {[%clk 0:03:01]} 5. e4 {[%clk 0:03:00]}  Nxc3 {[%clk 0:03:01]} 6. bxc3 {[%clk 0:03:00]}  Bg7 {[%clk 0:03:02]} 7. Bc4 {[%clk 0:03:00]}  c5 {[%clk 0:03:02]} 8. Ne2 {[%clk 0:03:00]}  Nc6 {[%clk 0:03:02]} 9. Be3 {[%clk 0:03:00]}  O-O {[%clk 0:03:02]} 10. O-O {[%clk 0:02:59]}  Na5 {[%clk 0:03:02]} 11. Bd3 {[%clk 0:02:54]}  b6 {[%clk 0:03:02]} 12. Rc1 {[%clk 0:02:49]}  cxd4 {[%clk 0:02:58]} 13. cxd4 {[%clk 0:02:48]}  e6 {[%clk 0:02:59]} 14. Qd2 {[%clk 0:02:41]}  Bb7 {[%clk 0:02:57]} 15. Bh6 {[%clk 0:02:27]}  Bxh6 {[%clk 0:02:46]} 16. Qxh6 {[%clk 0:02:25]}  Rc8 {[%clk 0:02:47]} 17. Rxc8 {[%clk 0:02:02]}  Qxc8 {[%clk 0:02:48]} 18. e5 {[%clk 0:02:01]}  Ba6 {[%clk 0:02:46]} 19. Bxa6 {[%clk 0:01:59]}  Qxa6 {[%clk 0:02:46]} 20. Ng3 {[%clk 0:01:59]}  Qd3 {[%clk 0:02:45]} 21. Re1 {[%clk 0:01:37]}  Rc8 {[%clk 0:02:17]} 22. h4 {[%clk 0:01:33]}  Qxd4 {[%clk 0:02:15]} 23. Re4 {[%clk 0:01:21]}  Qd1+ {[%clk 0:02:07]} 24. Kh2 {[%clk 0:01:21]}  Nc6 {[%clk 0:02:01]} 25. h5 {[%clk 0:01:15]}  Ne7 {[%clk 0:01:53]} 26. Rf4 {[%clk 0:01:10]}  Nf5 {[%clk 0:01:47]} 27. hxg6 {[%clk 0:00:33]}  Nxh6 {[%clk 0:01:45]} 0-1


[Site "https://www.chess.com"]